[Event "*** Titled Tuesday Blitz"]
[Site "Chess.com"]
[Date "2020.12.29"]
[Round "1"]
[White "Vaathi_Coming"]
[Black "Kislov_Oleg"]
[Result "1-0"]
[WhiteElo "2825"]
[BlackElo "2425"]
[TimeControl "180+1"]
[EndTime "10:07:38 PST"]
[Termination "Vaathi_Coming won by resignation"]

1. Nf3 {[%clk 0:03:00.9]} 1... d5 {[%clk 0:02:59.5]} 2. g3 {[%clk 0:03:00.4]}
2... Nf6 {[%clk 0:02:59.3]} 3. b3 {[%clk 0:03:00.6]} 3... c6 {[%clk 0:02:58.8]}
4. Bb2 {[%clk 0:03:00.9]} 4... Bg4 {[%clk 0:02:54.3]} 5. Bg2 {[%clk 0:03:01]}
5... Nbd7 {[%clk 0:02:54]} 6. O-O {[%clk 0:02:59.9]} 6... e6 {[%clk 0:02:53.4]}
7. c4 {[%clk 0:02:58.5]} 7... Bd6 {[%clk 0:02:51.6]} 8. d4 {[%clk 0:02:58.5]}
8... Ne4 {[%clk 0:02:45.9]} 9. Ne5 {[%clk 0:02:49.9]} 9... Bf5 {[%clk
0:02:24.2]} 10. Nxd7 {[%clk 0:02:29.7]} 10... Qxd7 {[%clk 0:02:23.7]} 11. f3
{[%clk 0:02:30.2]} 11... Nf6 {[%clk 0:02:19.3]} 12. Nc3 {[%clk 0:02:30.2]} 12...
Bg6 {[%clk 0:02:06.4]} 13. e4 {[%clk 0:02:25.4]} 13... dxe4 {[%clk 0:02:03.5]}
14. fxe4 {[%clk 0:02:26.3]} 14... e5 {[%clk 0:02:03.3]} 15. d5 {[%clk 0:02:14]}
15... Ng4 {[%clk 0:01:45.3]} 16. Qe2 {[%clk 0:02:01.1]} 16... Bc5+ {[%clk
0:01:38.8]} 17. Kh1 {[%clk 0:02:01.1]} 17... Ne3 {[%clk 0:01:34.3]} 18. Na4
{[%clk 0:01:42.7]} 18... Bd4 {[%clk 0:01:20.7]} 19. Bxd4 {[%clk 0:01:04.2]}
19... exd4 {[%clk 0:01:20.6]} 20. e5 {[%clk 0:01:02.2]} 20... O-O {[%clk
0:00:57.1]} 21. d6 {[%clk 0:00:50.3]} 21... b6 {[%clk 0:00:50.2]} 22. Rf4 {[%clk
0:00:50]} 22... Nxg2 {[%clk 0:00:44.9]} 23. Qxg2 {[%clk 0:00:46.5]} 23... c5
{[%clk 0:00:45.5]} 24. Re1 {[%clk 0:00:43]} 24... Rae8 {[%clk 0:00:43.7]} 25.
Qd5 {[%clk 0:00:41.5]} 25... Re6 {[%clk 0:00:41.2]} 26. Nb2 {[%clk 0:00:36.3]}
26... Rfe8 {[%clk 0:00:40.3]} 27. b4 {[%clk 0:00:34.3]} 27... Rxd6 {[%clk
0:00:35.3]} 28. exd6 {[%clk 0:00:30.3]} 28... Rxe1+ {[%clk 0:00:34.5]} 29. Kg2
{[%clk 0:00:31.2]} 29... Re2+ {[%clk 0:00:26.9]} 30. Kf1 {[%clk 0:00:15.5]}
30... Re8 {[%clk 0:00:24.1]} 31. Kg2 {[%clk 0:00:05.8]} 31... h6 {[%clk
0:00:20.9]} 32. bxc5 {[%clk 0:00:05.5]} 32... Re1 {[%clk 0:00:20.7]} 33. Nd1
{[%clk 0:00:06.3]} 33... Rxd1 {[%clk 0:00:16.6]} 34. c6 {[%clk 0:00:06]} 34...
Rd2+ {[%clk 0:00:16.5]} 35. Rf2 {[%clk 0:00:05.2]} 35... Rxf2+ {[%clk
0:00:12.5]} 36. Kxf2 {[%clk 0:00:06.1]} 36... Qh3 {[%clk 0:00:03.9]} 37. d7
{[%clk 0:00:05.9]} 37... Qxh2+ {[%clk 0:00:03.8]} 38. Qg2 {[%clk 0:00:05.6]}
38... Qxg2+ {[%clk 0:00:04.1]} 39. Kxg2 {[%clk 0:00:06.5]} 39... d3 {[%clk
0:00:03.5]} 40. d8=Q+ {[%clk 0:00:06.4]} 40... Kh7 {[%clk 0:00:03.4]} 41. c7
{[%clk 0:00:07.3]} 1-0

[Event "*** Titled Tuesday Blitz"]
[Site "Chess.com"]
[Date "2020.12.29"]
[Round "1"]
[White "tlomigtlis"]
[Black "Denis_Palkovich"]
[Result "1-0"]
[WhiteElo "2555"]
[BlackElo "2243"]
[TimeControl "180+1"]
[EndTime "10:07:38 PST"]
[Termination "tlomigtlis won on time"]

1. d4 {[%clk 0:03:00.5]} 1... d5 {[%clk 0:02:59.1]} 2. c4 {[%clk 0:02:59.9]}
2... Bf5 {[%clk 0:02:59.4]} 3. cxd5 {[%clk 0:02:56.7]} 3... Bxb1 {[%clk
0:02:57.5]} 4. Rxb1 {[%clk 0:02:57.6]} 4... Qxd5 {[%clk 0:02:57]} 5. b3 {[%clk
0:02:52.7]} 5... Nc6 {[%clk 0:02:54.9]} 6. e3 {[%clk 0:02:52.4]} 6... O-O-O
{[%clk 0:02:45.5]} 7. Nf3 {[%clk 0:02:41.8]} 7... e5 {[%clk 0:02:45.4]} 8. Bc4
{[%clk 0:02:40.8]} 8... Qe4 {[%clk 0:02:24.2]} 9. Bd3 {[%clk 0:02:39.6]} 9...
Bb4+ {[%clk 0:02:19.9]} 10. Kf1 {[%clk 0:02:19.9]} 10... Qg4 {[%clk 0:02:14.7]}
11. h3 {[%clk 0:02:15]} 11... Qd7 {[%clk 0:01:49.3]} 12. Qc2 {[%clk 0:01:57.6]}
12... Nge7 {[%clk 0:01:47.5]} 13. Bb2 {[%clk 0:01:57.2]} 13... exd4 {[%clk
0:01:40.3]} 14. Nxd4 {[%clk 0:01:56.3]} 14... Kb8 {[%clk 0:01:28.2]} 15. Be4
{[%clk 0:01:42]} 15... Nxd4 {[%clk 0:01:19.4]} 16. Bxd4 {[%clk 0:01:42.9]} 16...
f5 {[%clk 0:00:59.4]} 17. Bf3 {[%clk 0:01:39.7]} 17... Rhg8 {[%clk 0:00:51]} 18.
g3 {[%clk 0:01:24.1]} 18... g5 {[%clk 0:00:47]} 19. Kg1 {[%clk 0:01:20.6]} 19...
f4 {[%clk 0:00:44.6]} 20. Qe4 {[%clk 0:01:08.2]} 20... Nc6 {[%clk 0:00:33.8]}
21. Rc1 {[%clk 0:01:04.7]} 21... fxg3 {[%clk 0:00:27.9]} 22. fxg3 {[%clk
0:01:05.6]} 22... Rge8 {[%clk 0:00:26.8]} 23. Qd3 {[%clk 0:00:28.7]} 23... Nxd4
{[%clk 0:00:17.5]} 24. exd4 {[%clk 0:00:25.8]} 24... Qxd4+ {[%clk 0:00:13.8]}
25. Qxd4 {[%clk 0:00:26.7]} 25... Rxd4 {[%clk 0:00:14]} 26. Rh2 {[%clk
0:00:27.5]} 26... Bd2 {[%clk 0:00:10.3]} 27. Rd1 {[%clk 0:00:22.7]} 27... Be3+
{[%clk 0:00:10]} 28. Kf1 {[%clk 0:00:23.1]} 28... Rxd1+ {[%clk 0:00:09.3]} 29.
Bxd1 {[%clk 0:00:24]} 29... Rd8 {[%clk 0:00:08.3]} 30. Bh5 {[%clk 0:00:15.7]}
30... Bc5 {[%clk 0:00:05.1]} 31. Re2 {[%clk 0:00:13.4]} 31... Bd6 {[%clk
0:00:04.5]} 32. Kg2 {[%clk 0:00:13.4]} 32... a5 {[%clk 0:00:04.1]} 33. Bg4
{[%clk 0:00:13.6]} 33... Rf8 {[%clk 0:00:04.1]} 34. Re6 {[%clk 0:00:12.3]} 34...
b6 {[%clk 0:00:03.4]} 35. Rh6 {[%clk 0:00:12.3]} 35... Rf7 {[%clk 0:00:02.5]}
36. Bf3 {[%clk 0:00:12.5]} 36... Ka7 {[%clk 0:00:02.4]} 37. Be4 {[%clk
0:00:11.1]} 37... b5 {[%clk 0:00:02.2]} 38. Bxh7 {[%clk 0:00:11]} 38... a4
{[%clk 0:00:01.9]} 39. Bd3 {[%clk 0:00:10.8]} 39... axb3 {[%clk 0:00:01.8]} 40.
axb3 {[%clk 0:00:11.7]} 40... b4 {[%clk 0:00:02.1]} 41. Re6 {[%clk 0:00:10.7]}
41... Rd7 {[%clk 0:00:02]} 42. Bb5 {[%clk 0:00:10.5]} 42... Rd8 {[%clk
0:00:01.7]} 43. Bc4 {[%clk 0:00:08.9]} 43... Kb6 {[%clk 0:00:02]} 44. Rg6 {[%clk
0:00:09.3]} 1-0

[Event "*** Titled Tuesday Blitz"]
[Site "Chess.com"]
[Date "2020.12.29"]
[Round "1"]
[White "amatatanav"]
[Black "TigrVShlyape"]
[Result "0-1"]
[WhiteElo "2442"]
[BlackElo "2861"]
[TimeControl "180+1"]
[EndTime "10:07:42 PST"]
[Termination "TigrVShlyape won on time"]

1. e4 {[%clk 0:03:00.9]} 1... e5 {[%clk 0:02:58.9]} 2. Bc4 {[%clk 0:03:00.3]}
2... Nf6 {[%clk 0:02:51.9]} 3. d3 {[%clk 0:03:00.4]} 3... c6 {[%clk 0:02:49.7]}
4. Nf3 {[%clk 0:03:00.1]} 4... d5 {[%clk 0:02:48.3]} 5. Bb3 {[%clk 0:03:00.4]}
5... Bd6 {[%clk 0:02:44.5]} 6. exd5 {[%clk 0:03:00.7]} 6... cxd5 {[%clk
0:02:43.3]} 7. Bg5 {[%clk 0:03:00.9]} 7... Be6 {[%clk 0:02:40.1]} 8. Nc3 {[%clk
0:03:00.7]} 8... Bc7 {[%clk 0:02:31.8]} 9. d4 {[%clk 0:02:53.9]} 9... e4 {[%clk
0:02:25.9]} 10. Nd2 {[%clk 0:02:53.8]} 10... Ba5 {[%clk 0:02:11.2]} 11. Bxf6
{[%clk 0:02:30.6]} 11... gxf6 {[%clk 0:01:46.4]} 12. Qh5 {[%clk 0:02:14.2]}
12... f5 {[%clk 0:01:34.2]} 13. g4 {[%clk 0:02:13.7]} 13... Bxc3 {[%clk
0:00:42.8]} 14. bxc3 {[%clk 0:02:13.4]} 14... Nd7 {[%clk 0:00:40.2]} 15. gxf5
{[%clk 0:01:36.6]} 15... Nf6 {[%clk 0:00:37.5]} 16. Qh3 {[%clk 0:00:52.9]} 16...
Bd7 {[%clk 0:00:35.1]} 17. c4 {[%clk 0:00:38.7]} 17... dxc4 {[%clk 0:00:24.2]}
18. Nxc4 {[%clk 0:00:36.1]} 18... Bc6 {[%clk 0:00:19]} 19. O-O-O {[%clk
0:00:27.8]} 19... Bd5 {[%clk 0:00:10.8]} 20. Rhe1 {[%clk 0:00:20.5]} 20... Qe7
{[%clk 0:00:10.2]} 21. f3 {[%clk 0:00:15.1]} 21... Bxc4 {[%clk 0:00:07.3]} 22.
Bxc4 {[%clk 0:00:15.2]} 22... e3 {[%clk 0:00:07.5]} 23. f4 {[%clk 0:00:11]}
23... O-O-O {[%clk 0:00:06.7]} 24. Qxe3 {[%clk 0:00:09.7]} 24... Qxe3+ {[%clk
0:00:05.8]} 25. Rxe3 {[%clk 0:00:09.7]} 25... Rd7 {[%clk 0:00:05.4]} 26. c3
{[%clk 0:00:08.3]} 26... Kc7 {[%clk 0:00:05.6]} 27. Rde1 {[%clk 0:00:07.9]}
27... Kd6 {[%clk 0:00:06]} 28. Rg3 {[%clk 0:00:07.5]} 28... Rc8 {[%clk
0:00:04.8]} 29. Bb3 {[%clk 0:00:07.5]} 29... b5 {[%clk 0:00:04.3]} 30. Kb2
{[%clk 0:00:07.4]} 30... a5 {[%clk 0:00:04.3]} 31. a3 {[%clk 0:00:06.6]} 31...
Rdc7 {[%clk 0:00:04.4]} 32. Ree3 {[%clk 0:00:05.4]} 32... Rf8 {[%clk 0:00:03.3]}
33. Re5 {[%clk 0:00:04.7]} 33... Rb8 {[%clk 0:00:03]} 34. h4 {[%clk 0:00:03.8]}
34... Rbb7 {[%clk 0:00:03.3]} 35. Rge3 {[%clk 0:00:02.8]} 35... h6 {[%clk
0:00:03.5]} 36. Re2 {[%clk 0:00:02.3]} 36... Re7 {[%clk 0:00:03.4]} 37. Rxe7
{[%clk 0:00:02.1]} 37... Rxe7 {[%clk 0:00:03.6]} 38. Re5 {[%clk 0:00:01.8]}
38... Rb7 {[%clk 0:00:03]} 39. Kc2 {[%clk 0:00:01.3]} 39... Nh5 {[%clk
0:00:01.7]} 0-1

[Event "*** Titled Tuesday Blitz"]
[Site "Chess.com"]
[Date "2020.12.29"]
[Round "1"]
[White "ZverevLev"]
[Black "tjychess"]
[Result "0-1"]
[WhiteElo "2392"]
[BlackElo "2729"]
[TimeControl "180+1"]
[EndTime "10:07:42 PST"]
[Termination "tjychess won by resignation"]

1. e4 {[%clk 0:03:00.2]} 1... e5 {[%clk 0:03:00.1]} 2. Nf3 {[%clk 0:02:59]} 2...
Nc6 {[%clk 0:03:00.5]} 3. Bb5 {[%clk 0:02:55.2]} 3... a6 {[%clk 0:03:00.4]} 4.
Ba4 {[%clk 0:02:54.8]} 4... Nf6 {[%clk 0:03:00.2]} 5. d3 {[%clk 0:02:54.2]} 5...
b5 {[%clk 0:02:56.6]} 6. Bb3 {[%clk 0:02:52.5]} 6... Bc5 {[%clk 0:02:57.2]} 7.
c3 {[%clk 0:02:52.3]} 7... d6 {[%clk 0:02:57.3]} 8. O-O {[%clk 0:02:52]} 8... h6
{[%clk 0:02:57.4]} 9. Nbd2 {[%clk 0:02:51.3]} 9... O-O {[%clk 0:02:56]} 10. Re1
{[%clk 0:02:51]} 10... Bb6 {[%clk 0:02:53.8]} 11. h3 {[%clk 0:02:49.2]} 11...
Ne7 {[%clk 0:02:53.5]} 12. Nf1 {[%clk 0:02:48.7]} 12... Ng6 {[%clk 0:02:53.6]}
13. Ng3 {[%clk 0:02:48.1]} 13... Be6 {[%clk 0:02:47.9]} 14. Bc2 {[%clk
0:02:44.8]} 14... Re8 {[%clk 0:02:44.3]} 15. Be3 {[%clk 0:02:43.6]} 15... c5
{[%clk 0:02:44]} 16. Qd2 {[%clk 0:02:42.4]} 16... d5 {[%clk 0:02:41.4]} 17. exd5
{[%clk 0:02:35.9]} 17... Nxd5 {[%clk 0:02:40.3]} 18. Rad1 {[%clk 0:02:35]} 18...
Nxe3 {[%clk 0:02:37.4]} 19. fxe3 {[%clk 0:02:35.9]} 19... Nh4 {[%clk 0:02:06.1]}
20. Nxh4 {[%clk 0:02:23.8]} 20... Qxh4 {[%clk 0:02:05.6]} 21. Qf2 {[%clk
0:02:24.1]} 21... Rad8 {[%clk 0:02:03.6]} 22. e4 {[%clk 0:02:11.9]} 22... Rd6
{[%clk 0:01:39.1]} 23. Kh2 {[%clk 0:02:09.1]} 23... c4 {[%clk 0:01:36.7]} 24.
Qf3 {[%clk 0:02:03.6]} 24... Red8 {[%clk 0:01:29]} 25. dxc4 {[%clk 0:01:57.1]}
25... bxc4 {[%clk 0:01:20.4]} 26. Rxd6 {[%clk 0:01:52.6]} 26... Rxd6 {[%clk
0:01:21.3]} 27. Rd1 {[%clk 0:01:52.7]} 27... Rxd1 {[%clk 0:01:18.5]} 28. Qxd1
{[%clk 0:01:53.6]} 28... Qf4 {[%clk 0:01:12.1]} 29. Qf3 {[%clk 0:01:50.7]} 29...
Qc1 {[%clk 0:01:10.4]} 30. Qd1 {[%clk 0:01:46.7]} 30... Qxb2 {[%clk 0:01:04.4]}
31. Nf5 {[%clk 0:01:45.3]} 31... Qxc3 {[%clk 0:00:54.8]} 32. Ba4 {[%clk
0:01:41]} 32... Qd3 {[%clk 0:00:47.7]} 33. Qg4 {[%clk 0:01:35.2]} 33... g6
{[%clk 0:00:35.6]} 34. Nxh6+ {[%clk 0:01:33.4]} 34... Kf8 {[%clk 0:00:35.7]} 35.
Qh4 {[%clk 0:01:30.5]} 35... Bd8 {[%clk 0:00:31]} 36. Qf2 {[%clk 0:01:26.7]}
36... Bg5 {[%clk 0:00:30.3]} 37. Ng4 {[%clk 0:01:20.4]} 37... Qxe4 {[%clk
0:00:30.2]} 38. g3 {[%clk 0:01:10]} 38... Kg7 {[%clk 0:00:28.4]} 39. Bc2 {[%clk
0:01:03.4]} 39... Qd4 {[%clk 0:00:26.8]} 40. Qe2 {[%clk 0:01:03.1]} 40... Bxg4
{[%clk 0:00:23]} 41. hxg4 {[%clk 0:01:01.7]} 41... Qd2 {[%clk 0:00:22.1]} 42.
Qxd2 {[%clk 0:01:02]} 42... Bxd2 {[%clk 0:00:23]} 43. Kg2 {[%clk 0:01:02.6]}
43... Kf6 {[%clk 0:00:23.5]} 44. Kf3 {[%clk 0:01:03.2]} 44... Kg5 {[%clk
0:00:24.1]} 45. Be4 {[%clk 0:01:00.4]} 45... f5 {[%clk 0:00:23.9]} 46. gxf5
{[%clk 0:00:59.9]} 46... gxf5 {[%clk 0:00:24.8]} 47. Bc2 {[%clk 0:00:59.6]}
47... Bb4 {[%clk 0:00:24.4]} 48. g4 {[%clk 0:00:55.9]} 48... fxg4+ {[%clk
0:00:23.4]} 49. Ke4 {[%clk 0:00:55.9]} 49... g3 {[%clk 0:00:23.1]} 50. Kf3
{[%clk 0:00:55.9]} 50... Kh4 {[%clk 0:00:23.4]} 51. Be4 {[%clk 0:00:54.1]} 51...
Kh3 {[%clk 0:00:22.5]} 52. Bf5+ {[%clk 0:00:33.9]} 52... Kh2 {[%clk 0:00:22.5]}
53. Ke4 {[%clk 0:00:33.9]} 53... g2 {[%clk 0:00:22.7]} 54. Kxe5 {[%clk 0:00:34]}
54... g1=Q {[%clk 0:00:23.6]} 55. Ke6 {[%clk 0:00:33.7]} 55... Qc5 {[%clk
0:00:24.1]} 0-1

[Event "*** Titled Tuesday Blitz"]
[Site "Chess.com"]
[Date "2020.12.29"]
[Round "1"]
[White "Evgeny81"]
[Black "serena-maria"]
[Result "1-0"]
[WhiteElo "2727"]
[BlackElo "2388"]
[TimeControl "180+1"]
[EndTime "10:07:44 PST"]
[Termination "Evgeny81 won by checkmate"]

1. c4 {[%clk 0:03:00]} 1... Nf6 {[%clk 0:02:59]} 2. Nc3 {[%clk 0:02:56]} 2... d5
{[%clk 0:02:59]} 3. cxd5 {[%clk 0:02:55.5]} 3... Nxd5 {[%clk 0:02:59.9]} 4. g3
{[%clk 0:02:53.7]} 4... g6 {[%clk 0:02:59.8]} 5. Bg2 {[%clk 0:02:54]} 5... Nb6
{[%clk 0:03:00]} 6. d3 {[%clk 0:02:52.9]} 6... Bg7 {[%clk 0:02:59.5]} 7. Be3
{[%clk 0:02:50.9]} 7... Nc6 {[%clk 0:02:57.3]} 8. h4 {[%clk 0:02:49.7]} 8... Nd4
{[%clk 0:02:56.6]} 9. h5 {[%clk 0:02:47]} 9... Nf5 {[%clk 0:02:49.1]} 10. Bf4
{[%clk 0:02:39.8]} 10... e5 {[%clk 0:02:44.9]} 11. Bd2 {[%clk 0:02:39.2]} 11...
c6 {[%clk 0:02:38.2]} 12. Nf3 {[%clk 0:02:36.2]} 12... Bf6 {[%clk 0:02:21.6]}
13. Ne4 {[%clk 0:02:32.9]} 13... Be6 {[%clk 0:01:38.4]} 14. Nxf6+ {[%clk
0:02:20.7]} 14... Qxf6 {[%clk 0:01:39.3]} 15. Bg5 {[%clk 0:02:21.1]} 15... Qg7
{[%clk 0:01:39.3]} 16. h6 {[%clk 0:02:21.3]} 16... Qf8 {[%clk 0:01:38.7]} 17.
Bf6 {[%clk 0:02:17.2]} 17... Rg8 {[%clk 0:01:37.1]} 18. Bxe5 {[%clk 0:02:14]}
18... Nxh6 {[%clk 0:01:25.5]} 19. Qd2 {[%clk 0:02:09]} 19... Ng4 {[%clk
0:01:22.2]} 20. Rxh7 {[%clk 0:02:05.5]} 20... Nxe5 {[%clk 0:01:21]} 21. Nxe5
{[%clk 0:02:04.4]} 21... Rh8 {[%clk 0:01:14.8]} 22. Rxh8 {[%clk 0:01:52.4]}
22... Qxh8 {[%clk 0:01:15.7]} 23. Nf3 {[%clk 0:01:43.6]} 23... O-O-O {[%clk
0:01:13.1]} 24. Qc3 {[%clk 0:01:41.5]} 24... Qh6 {[%clk 0:01:06.2]} 25. Rc1
{[%clk 0:01:32.3]} 25... Bxa2 {[%clk 0:01:00.5]} 26. Ra1 {[%clk 0:01:26.3]}
26... Bd5 {[%clk 0:00:55.7]} 27. Rxa7 {[%clk 0:01:22.8]} 27... Kb8 {[%clk
0:00:55.2]} 28. Ra1 {[%clk 0:01:21.8]} 28... Re8 {[%clk 0:00:50.3]} 29. Qa5
{[%clk 0:01:11.1]} 29... Kc7 {[%clk 0:00:50]} 30. Qd2 {[%clk 0:00:59.6]} 30...
Qh5 {[%clk 0:00:45]} 31. Qf4+ {[%clk 0:00:58]} 31... Kc8 {[%clk 0:00:38.6]} 32.
Kf1 {[%clk 0:00:40.9]} 32... Qh8 {[%clk 0:00:30.7]} 33. Qb4 {[%clk 0:00:37.5]}
33... Kc7 {[%clk 0:00:27.8]} 34. Rc1 {[%clk 0:00:28.4]} 34... Qf6 {[%clk
0:00:20.6]} 35. e4 {[%clk 0:00:27.4]} 35... Be6 {[%clk 0:00:15.8]} 36. d4 {[%clk
0:00:18.3]} 36... Bh3 {[%clk 0:00:16]} 37. Bxh3 {[%clk 0:00:11.9]} 37... Qxf3
{[%clk 0:00:16.1]} 38. Bg2 {[%clk 0:00:12.3]} 38... Qd3+ {[%clk 0:00:12.1]} 39.
Kg1 {[%clk 0:00:12.1]} 39... Re6 {[%clk 0:00:04.4]} 40. d5 {[%clk 0:00:11.5]}
40... Rf6 {[%clk 0:00:03.4]} 41. e5 {[%clk 0:00:10.4]} 41... Rf5 {[%clk
0:00:02.9]} 42. d6+ {[%clk 0:00:10.6]} 42... Kd7 {[%clk 0:00:02.4]} 43. Qxb6
{[%clk 0:00:11.1]} 43... Qd2 {[%clk 0:00:02.9]} 44. Qc7+ {[%clk 0:00:10.9]}
44... Ke6 {[%clk 0:00:03]} 45. Qe7# {[%clk 0:00:11.5]} 1-0

[Event "*** Titled Tuesday Blitz"]
[Site "Chess.com"]
[Date "2020.12.29"]
[Round "1"]
[White "A-S-00"]
[Black "Airquake"]
[Result "0-1"]
[WhiteElo "2257"]
[BlackElo "2560"]
[TimeControl "180+1"]
[EndTime "10:07:44 PST"]
[Termination "Airquake won by resignation"]

1. d4 {[%clk 0:02:59]} 1... Nf6 {[%clk 0:02:57.6]} 2. c4 {[%clk 0:02:58.2]} 2...
e6 {[%clk 0:02:58.5]} 3. Nc3 {[%clk 0:02:55.4]} 3... b6 {[%clk 0:02:58.8]} 4. e4
{[%clk 0:02:52.9]} 4... Bb7 {[%clk 0:02:58.7]} 5. Qc2 {[%clk 0:02:53.1]} 5...
Bb4 {[%clk 0:02:58.4]} 6. f3 {[%clk 0:02:52.9]} 6... c5 {[%clk 0:02:54.5]} 7. d5
{[%clk 0:02:51.6]} 7... exd5 {[%clk 0:02:53.5]} 8. cxd5 {[%clk 0:02:50.5]} 8...
d6 {[%clk 0:02:54]} 9. Bb5+ {[%clk 0:02:44.7]} 9... Nbd7 {[%clk 0:02:53.7]} 10.
Ne2 {[%clk 0:02:44.8]} 10... O-O {[%clk 0:02:51.7]} 11. O-O {[%clk 0:02:39.6]}
11... Ne5 {[%clk 0:02:50.2]} 12. f4 {[%clk 0:02:35.8]} 12... Ng6 {[%clk
0:02:49.3]} 13. Bd3 {[%clk 0:02:32.3]} 13... Re8 {[%clk 0:02:45]} 14. a3 {[%clk
0:02:30.9]} 14... Ba5 {[%clk 0:02:45.1]} 15. Rb1 {[%clk 0:02:19.1]} 15... Bxc3
{[%clk 0:02:18.5]} 16. Nxc3 {[%clk 0:02:18.5]} 16... a6 {[%clk 0:02:15.8]} 17.
a4 {[%clk 0:02:16.9]} 17... Qd7 {[%clk 0:01:57]} 18. Bd2 {[%clk 0:02:13.4]}
18... Rac8 {[%clk 0:01:51.4]} 19. b3 {[%clk 0:02:13.3]} 19... Qg4 {[%clk
0:01:43.8]} 20. Be2 {[%clk 0:02:02.6]} 20... Qh4 {[%clk 0:01:40.6]} 21. g3
{[%clk 0:01:57]} 21... Qh3 {[%clk 0:01:40.2]} 22. Bf3 {[%clk 0:01:57.2]} 22...
Ng4 {[%clk 0:01:31.6]} 23. Bc1 {[%clk 0:01:56.9]} 23... Nf6 {[%clk 0:01:12.8]}
24. Bb2 {[%clk 0:01:50.8]} 24... c4 {[%clk 0:01:09.3]} 25. b4 {[%clk 0:01:50.6]}
25... Qd7 {[%clk 0:01:09.1]} 26. Rbe1 {[%clk 0:01:42.2]} 26... a5 {[%clk
0:01:04.9]} 27. b5 {[%clk 0:01:41.3]} 27... Qe7 {[%clk 0:01:04.8]} 28. h4 {[%clk
0:01:34.1]} 28... Nd7 {[%clk 0:01:03.2]} 29. h5 {[%clk 0:01:32.4]} 29... Ngf8
{[%clk 0:01:03.5]} 30. Bg4 {[%clk 0:01:26.5]} 30... Rcd8 {[%clk 0:00:56.6]} 31.
h6 {[%clk 0:01:12.9]} 31... Nc5 {[%clk 0:00:39.1]} 32. hxg7 {[%clk 0:01:08]}
32... Ng6 {[%clk 0:00:37.8]} 33. Bf3 {[%clk 0:01:03.1]} 33... Nd3 {[%clk
0:00:37.4]} 34. Re2 {[%clk 0:01:01.1]} 34... Qf6 {[%clk 0:00:34.5]} 35. Qd1
{[%clk 0:00:57.3]} 35... Nxb2 {[%clk 0:00:33.6]} 36. Rxb2 {[%clk 0:00:39.6]}
36... Qxc3 {[%clk 0:00:32.3]} 37. Rc2 {[%clk 0:00:39.2]} 37... Qe3+ {[%clk
0:00:32.1]} 38. Kg2 {[%clk 0:00:38.4]} 38... Rc8 {[%clk 0:00:27.3]} 39. Re1
{[%clk 0:00:38.2]} 39... Qc5 {[%clk 0:00:27]} 40. Bg4 {[%clk 0:00:38.2]} 40...
Rc7 {[%clk 0:00:25.7]} 41. Rc3 {[%clk 0:00:38.3]} 41... Qb4 {[%clk 0:00:25.3]}
42. Qc2 {[%clk 0:00:37]} 42... Bxd5 {[%clk 0:00:23.6]} 43. Bf3 {[%clk
0:00:34.3]} 43... Bb7 {[%clk 0:00:23.5]} 44. Rb1 {[%clk 0:00:33.2]} 44... Qc5
{[%clk 0:00:22.8]} 45. Rc1 {[%clk 0:00:33.6]} 45... Qd4 {[%clk 0:00:22.3]} 46.
Rxc4 {[%clk 0:00:31.2]} 46... Rxc4 {[%clk 0:00:22.2]} 47. Qxc4 {[%clk
0:00:31.4]} 47... Qd2+ {[%clk 0:00:22.6]} 48. Kh1 {[%clk 0:00:29.5]} 48... Qf2
{[%clk 0:00:20.8]} 49. Qe2 {[%clk 0:00:28.2]} 49... Qxg3 {[%clk 0:00:20.9]} 50.
f5 {[%clk 0:00:27.3]} 50... Nf4 {[%clk 0:00:20.1]} 51. Qe3 {[%clk 0:00:27.5]}
51... Nh3 {[%clk 0:00:17.8]} 52. Rc2 {[%clk 0:00:25.8]} 52... Bxe4 {[%clk
0:00:17.4]} 53. Qxe4 {[%clk 0:00:24.5]} 53... Rxe4 {[%clk 0:00:16.7]} 54. Rc8+
{[%clk 0:00:23.8]} 54... Kxg7 {[%clk 0:00:17.1]} 55. Bxe4 {[%clk 0:00:23.3]} 0-1

[Event "*** Titled Tuesday Blitz"]
[Site "Chess.com"]
[Date "2020.12.29"]
[Round "1"]
[White "Dinamo81"]
[Black "IMUffeVinther-Schou"]
[Result "0-1"]
[WhiteElo "2659"]
[BlackElo "2377"]
[TimeControl "180+1"]
[EndTime "10:07:46 PST"]
[Termination "IMUffeVinther-Schou won on time"]

1. d4 {[%clk 0:03:00.3]} 1... Nf6 {[%clk 0:02:59.2]} 2. Bf4 {[%clk 0:02:59.3]}
2... e6 {[%clk 0:02:58.2]} 3. e3 {[%clk 0:02:59]} 3... c5 {[%clk 0:02:57.3]} 4.
Nc3 {[%clk 0:02:58.3]} 4... Qb6 {[%clk 0:02:42.6]} 5. Rb1 {[%clk 0:02:18.3]}
5... a6 {[%clk 0:02:31.3]} 6. Nf3 {[%clk 0:02:17.4]} 6... Nc6 {[%clk 0:02:24]}
7. Be2 {[%clk 0:02:13.1]} 7... cxd4 {[%clk 0:02:13.2]} 8. exd4 {[%clk
0:02:12.4]} 8... Bb4 {[%clk 0:02:02.5]} 9. O-O {[%clk 0:02:11.6]} 9... O-O
{[%clk 0:02:01.4]} 10. d5 {[%clk 0:02:06.8]} 10... Ne7 {[%clk 0:01:52.9]} 11. a3
{[%clk 0:01:30.9]} 11... Bxc3 {[%clk 0:01:45.5]} 12. bxc3 {[%clk 0:01:30.5]}
12... Qa5 {[%clk 0:01:39.6]} 13. Bd6 {[%clk 0:01:29.3]} 13... Re8 {[%clk
0:01:36.8]} 14. dxe6 {[%clk 0:01:20.2]} 14... dxe6 {[%clk 0:01:33.2]} 15. Ne5
{[%clk 0:01:08.8]} 15... Ned5 {[%clk 0:01:27.6]} 16. c4 {[%clk 0:00:58.2]} 16...
Nc3 {[%clk 0:01:21.2]} 17. Qe1 {[%clk 0:00:58.2]} 17... Nfe4 {[%clk 0:00:54]}
18. Nxf7 {[%clk 0:00:42.5]} 18... Kxf7 {[%clk 0:00:49.4]} 19. Bb4 {[%clk
0:00:41.1]} 19... Nxe2+ {[%clk 0:00:43.7]} 20. Qxe2 {[%clk 0:00:42]} 20... Qf5
{[%clk 0:00:42.6]} 21. Rb3 {[%clk 0:00:41.5]} 21... Kg8 {[%clk 0:00:35.6]} 22.
Rf3 {[%clk 0:00:40.3]} 22... Qg6 {[%clk 0:00:35]} 23. Re1 {[%clk 0:00:35.1]}
23... Bd7 {[%clk 0:00:32.9]} 24. Re3 {[%clk 0:00:21.7]} 24... Bc6 {[%clk
0:00:32.4]} 25. f3 {[%clk 0:00:18.3]} 25... Ng5 {[%clk 0:00:31.2]} 26. h4 {[%clk
0:00:16.3]} 26... Nh3+ {[%clk 0:00:27.9]} 27. Kh2 {[%clk 0:00:15.3]} 27... Nf4
{[%clk 0:00:27.8]} 28. Qf2 {[%clk 0:00:15.6]} 28... Rad8 {[%clk 0:00:24.9]} 29.
Re5 {[%clk 0:00:15.5]} 29... Nh5 {[%clk 0:00:20.6]} 30. Rg5 {[%clk 0:00:14.9]}
30... Qh6 {[%clk 0:00:20]} 31. Bd2 {[%clk 0:00:14.5]} 31... Nf6 {[%clk
0:00:13.4]} 32. Bc3 {[%clk 0:00:14.3]} 32... Rf8 {[%clk 0:00:10.4]} 33. Qg3
{[%clk 0:00:14.2]} 33... Rde8 {[%clk 0:00:08.1]} 34. Ree5 {[%clk 0:00:13]} 34...
Kh8 {[%clk 0:00:06.4]} 35. Rh5 {[%clk 0:00:11.9]} 35... Qc1 {[%clk 0:00:04.9]}
36. Reg5 {[%clk 0:00:10.6]} 36... Rf7 {[%clk 0:00:02.7]} 37. Bxf6 {[%clk
0:00:04.9]} 37... gxf6 {[%clk 0:00:02.3]} 38. Rg4 {[%clk 0:00:05.2]} 38... Qxc2
{[%clk 0:00:01.9]} 39. Rh6 {[%clk 0:00:04.8]} 39... Ref8 {[%clk 0:00:01]} 40.
Qd6 {[%clk 0:00:04.2]} 40... Qf5 {[%clk 0:00:01.1]} 41. Rf4 {[%clk 0:00:01.8]}
41... Qe5 {[%clk 0:00:01.6]} 0-1